[Event "*** SCC Grand Prix: Titled Tuesday Blitz"]
[Site "Chess.com"]
[Date "2020.06.02"]
[Round "5"]
[White "XiaoKangZhong"]
[Black "Anton_Demchenko"]
[Result "0-1"]
[WhiteElo "2440"]
[BlackElo "2825"]
[TimeControl "180+1"]
[EndTime "10:58:10 PDT"]
[Termination "Anton_Demchenko won by resignation"]

1. e4 {[%clk 0:03:00.9]} 1... e5 {[%clk 0:03:00]} 2. Nf3 {[%clk 0:03:00.2]} 2...
Nc6 {[%clk 0:03:00.5]} 3. Bc4 {[%clk 0:02:59]} 3... Nf6 {[%clk 0:03:00.6]} 4. d3
{[%clk 0:02:58.3]} 4... Be7 {[%clk 0:03:00.7]} 5. Nbd2 {[%clk 0:02:56.3]} 5...
O-O {[%clk 0:03:01.6]} 6. a4 {[%clk 0:02:56.1]} 6... d6 {[%clk 0:03:01.7]} 7.
O-O {[%clk 0:02:55.4]} 7... Kh8 {[%clk 0:03:01.9]} 8. Re1 {[%clk 0:02:51.3]}
8... Ng8 {[%clk 0:03:01.5]} 9. c3 {[%clk 0:02:49.2]} 9... f5 {[%clk 0:03:01.5]}
10. Ba2 {[%clk 0:02:40.8]} 10... fxe4 {[%clk 0:02:58.6]} 11. Nxe4 {[%clk
0:02:41.7]} 11... Bg4 {[%clk 0:02:57.6]} 12. Re3 {[%clk 0:02:07.8]} 12... d5
{[%clk 0:02:56.1]} 13. Ng3 {[%clk 0:02:04.7]} 13... Bg5 {[%clk 0:02:56.1]} 14.
Re1 {[%clk 0:01:49.4]} 14... Bxf3 {[%clk 0:02:56.1]} 15. gxf3 {[%clk 0:01:50.3]}
15... Bxc1 {[%clk 0:02:47.8]} 16. Rxc1 {[%clk 0:01:49.7]} 16... Nf6 {[%clk
0:02:48.7]} 17. d4 {[%clk 0:01:44.2]} 17... exd4 {[%clk 0:02:47]} 18. cxd4
{[%clk 0:01:45.1]} 18... Nb4 {[%clk 0:02:47.6]} 19. Bb1 {[%clk 0:01:43.8]} 19...
a5 {[%clk 0:02:46.1]} 20. Re5 {[%clk 0:01:41.5]} 20... g6 {[%clk 0:02:40]} 21.
Qd2 {[%clk 0:01:36.4]} 21... Ra6 {[%clk 0:02:33.8]} 22. Rce1 {[%clk 0:01:28.5]}
22... Ng8 {[%clk 0:02:32.8]} 23. Qe3 {[%clk 0:01:22.1]} 23... Raf6 {[%clk
0:02:32.1]} 24. Re8 {[%clk 0:00:45.5]} 24... Qd6 {[%clk 0:02:31.2]} 25. Rxf8
{[%clk 0:00:44.8]} 25... Qxf8 {[%clk 0:02:32.1]} 26. Kg2 {[%clk 0:00:40.8]}
26... Nh6 {[%clk 0:02:13.9]} 27. Qe5 {[%clk 0:00:38.4]} 27... Qd6 {[%clk
0:02:08]} 28. Re3 {[%clk 0:00:36.5]} 28... Nf7 {[%clk 0:02:06.5]} 29. Qxd6
{[%clk 0:00:28.3]} 29... Nxd6 {[%clk 0:02:07.4]} 30. Re7 {[%clk 0:00:26.7]}
30... Rf7 {[%clk 0:02:07.6]} 31. Rxf7 {[%clk 0:00:21.2]} 31... Nxf7 {[%clk
0:02:08.5]} 32. Kf1 {[%clk 0:00:17.7]} 32... Kg7 {[%clk 0:02:07.5]} 33. Ke2
{[%clk 0:00:17.7]} 33... Kf6 {[%clk 0:02:07.3]} 34. Bd3 {[%clk 0:00:18]} 34...
Nd8 {[%clk 0:02:03.1]} 35. Ke3 {[%clk 0:00:18]} 35... Ne6 {[%clk 0:02:02.8]} 36.
Ne2 {[%clk 0:00:16.3]} 36... b6 {[%clk 0:01:59.9]} 37. b3 {[%clk 0:00:14.4]}
37... c5 {[%clk 0:02:00.2]} 38. f4 {[%clk 0:00:14.8]} 38... Nc6 {[%clk
0:01:58.4]} 39. dxc5 {[%clk 0:00:14.6]} 39... bxc5 {[%clk 0:01:59.3]} 40. Kd2
{[%clk 0:00:14.9]} 40... Ncd4 {[%clk 0:01:54.5]} 41. Nxd4 {[%clk 0:00:09.5]}
41... Nxd4 {[%clk 0:01:55.4]} 42. Kc3 {[%clk 0:00:09.9]} 42... Ne6 {[%clk
0:01:55.7]} 43. Bb5 {[%clk 0:00:05.7]} 43... Nxf4 {[%clk 0:01:55.4]} 44. Kd2
{[%clk 0:00:05.5]} 44... Ke5 {[%clk 0:01:55.9]} 45. Ke3 {[%clk 0:00:05.6]} 45...
Ne6 {[%clk 0:01:56.1]} 46. Ba6 {[%clk 0:00:05.3]} 46... Nd4 {[%clk 0:01:56.5]}
47. Bb5 {[%clk 0:00:03.6]} 47... Nxb3 {[%clk 0:01:56.8]} 48. Be8 {[%clk
0:00:03.3]} 48... Nd4 {[%clk 0:01:57.7]} 49. h4 {[%clk 0:00:03.6]} 49... Nf5+
{[%clk 0:01:52.6]} 50. Kd3 {[%clk 0:00:04.1]} 50... Nxh4 {[%clk 0:01:53.5]} 51.
Bd7 {[%clk 0:00:03.7]} 51... Nf3 {[%clk 0:01:52.9]} 52. Ke3 {[%clk 0:00:03.8]}
52... Nd4 {[%clk 0:01:53.1]} 53. Kd3 {[%clk 0:00:04.2]} 53... g5 {[%clk
0:01:52.8]} 54. Be8 {[%clk 0:00:04.7]} 54... h6 {[%clk 0:01:52.8]} 55. Bh5
{[%clk 0:00:05.1]} 55... Ne6 {[%clk 0:01:52.7]} 56. Bd1 {[%clk 0:00:06]} 56...
Nf4+ {[%clk 0:01:53.6]} 57. Ke3 {[%clk 0:00:06.4]} 57... d4+ {[%clk 0:01:53.2]}
58. Kf3 {[%clk 0:00:06.8]} 58... c4 {[%clk 0:01:53.8]} 59. Kg4 {[%clk
0:00:07.1]} 59... Kf6 {[%clk 0:01:51.7]} 60. Bf3 {[%clk 0:00:07]} 60... h5+
{[%clk 0:01:52.2]} 61. Kg3 {[%clk 0:00:06.4]} 61... Ke5 {[%clk 0:01:53.1]} 62.
Bd1 {[%clk 0:00:05.7]} 62... c3 {[%clk 0:01:53.6]} 63. Bc2 {[%clk 0:00:05.3]}
63... d3 {[%clk 0:01:53.4]} 64. Bb3 {[%clk 0:00:05.7]} 64... c2 {[%clk
0:01:53.4]} 65. f3 {[%clk 0:00:05]} 65... c1=Q {[%clk 0:01:53.2]} 66. Kf2 {[%clk
0:00:04.9]} 66... Qb2+ {[%clk 0:01:52.4]} 67. Kg3 {[%clk 0:00:04.3]} 67... Qxb3
{[%clk 0:01:51.3]} 68. Kh2 {[%clk 0:00:03.9]} 68... Qb2+ {[%clk 0:01:51.4]} 69.
Kg3 {[%clk 0:00:04.8]} 69... Qb4 {[%clk 0:01:50.8]} 70. Kf2 {[%clk 0:00:04.5]}
70... Qxa4 {[%clk 0:01:51.4]} 71. Kg3 {[%clk 0:00:05.4]} 71... Qb4 {[%clk
0:01:51.9]} 0-1

[Event "*** SCC Grand Prix: Titled Tuesday Blitz"]
[Site "Chess.com"]
[Date "2020.06.02"]
[Round "5"]
[White "Enriquack"]
[Black "karinachess1"]
[Result "0-1"]
[WhiteElo "2354"]
[BlackElo "2509"]
[TimeControl "180+1"]
[EndTime "10:58:12 PDT"]
[Termination "karinachess1 won by checkmate"]

1. e4 {[%clk 0:03:00.9]} 1... e5 {[%clk 0:02:58.1]} 2. Nf3 {[%clk 0:03:00.4]}
2... Nc6 {[%clk 0:02:57.2]} 3. Bb5 {[%clk 0:03:00.5]} 3... a6 {[%clk 0:02:55.9]}
4. Ba4 {[%clk 0:03:00.7]} 4... Nf6 {[%clk 0:02:55.4]} 5. O-O {[%clk 0:03:00.4]}
5... Be7 {[%clk 0:02:54.5]} 6. Re1 {[%clk 0:02:59.5]} 6... b5 {[%clk 0:02:50.4]}
7. Bb3 {[%clk 0:02:59.3]} 7... O-O {[%clk 0:02:46.2]} 8. d4 {[%clk 0:02:52.1]}
8... Nxd4 {[%clk 0:02:37.2]} 9. Nxd4 {[%clk 0:02:28.9]} 9... exd4 {[%clk
0:02:36.9]} 10. e5 {[%clk 0:02:28.6]} 10... Ne8 {[%clk 0:02:34.4]} 11. Qxd4
{[%clk 0:02:10.2]} 11... c5 {[%clk 0:02:29.3]} 12. Qe4 {[%clk 0:01:55.1]} 12...
c4 {[%clk 0:01:36.9]} 13. Qxa8 {[%clk 0:01:53.4]} 13... Qc7 {[%clk 0:01:30]} 14.
Qf3 {[%clk 0:01:35.8]} 14... Bb7 {[%clk 0:01:24.9]} 15. Qg3 {[%clk 0:01:36]}
15... Qc6 {[%clk 0:01:03.5]} 16. Nc3 {[%clk 0:01:26.5]} 16... d5 {[%clk
0:00:52.9]} 17. Ne2 {[%clk 0:01:09.7]} 17... Bc5 {[%clk 0:00:48]} 18. Nf4 {[%clk
0:01:03]} 18... d4 {[%clk 0:00:31.8]} 19. c3 {[%clk 0:00:52.2]} 19... cxb3
{[%clk 0:00:28.5]} 20. axb3 {[%clk 0:00:51.9]} 20... dxc3 {[%clk 0:00:28.8]} 21.
bxc3 {[%clk 0:00:51.9]} 21... g6 {[%clk 0:00:15.1]} 22. Be3 {[%clk 0:00:43.6]}
22... Ng7 {[%clk 0:00:14.5]} 23. Bxc5 {[%clk 0:00:31.5]} 23... Qxc5 {[%clk
0:00:15.4]} 24. Qe3 {[%clk 0:00:31.5]} 24... Qc6 {[%clk 0:00:15.2]} 25. e6
{[%clk 0:00:29.3]} 25... Nxe6 {[%clk 0:00:13.7]} 26. f3 {[%clk 0:00:27.9]} 26...
Nxf4 {[%clk 0:00:12.4]} 27. Qxf4 {[%clk 0:00:28.2]} 27... Qxc3 {[%clk 0:00:13]}
28. Qe3 {[%clk 0:00:26.3]} 28... Qf6 {[%clk 0:00:11.2]} 29. Qe5 {[%clk
0:00:24.9]} 29... Qb6+ {[%clk 0:00:10.7]} 30. Qe3 {[%clk 0:00:24.3]} 30... Qf6
{[%clk 0:00:10.8]} 31. Rac1 {[%clk 0:00:24.5]} 31... a5 {[%clk 0:00:10.5]} 32.
Qc5 {[%clk 0:00:23.1]} 32... Ba6 {[%clk 0:00:08.1]} 33. Rcd1 {[%clk 0:00:22]}
33... a4 {[%clk 0:00:08]} 34. Rd6 {[%clk 0:00:22]} 34... Qh4 {[%clk 0:00:07.2]}
35. Rxa6 {[%clk 0:00:22]} 35... Qxe1# {[%clk 0:00:07]} 0-1

[Event "*** SCC Grand Prix: Titled Tuesday Blitz"]
[Site "Chess.com"]
[Date "2020.06.02"]
[Round "5"]
[White "Reality-Stone"]
[Black "WPWPWP-2015"]
[Result "0-1"]
[WhiteElo "2485"]
[BlackElo "2356"]
[TimeControl "180+1"]
[EndTime "10:58:12 PDT"]
[Termination "WPWPWP-2015 won by resignation"]

1. d4 {[%clk 0:03:00.9]} 1... Nf6 {[%clk 0:02:55.2]} 2. c4 {[%clk 0:03:00.3]}
2... g6 {[%clk 0:02:54.8]} 3. Nc3 {[%clk 0:02:59.8]} 3... Bg7 {[%clk 0:02:54.6]}
4. e4 {[%clk 0:03:00.1]} 4... O-O {[%clk 0:02:54.6]} 5. Be3 {[%clk 0:02:58.1]}
5... d6 {[%clk 0:02:54.9]} 6. h3 {[%clk 0:02:58.1]} 6... e5 {[%clk 0:02:53.5]}
7. d5 {[%clk 0:02:57.1]} 7... a5 {[%clk 0:02:52.5]} 8. g4 {[%clk 0:02:57.2]}
8... Na6 {[%clk 0:02:52.2]} 9. Nge2 {[%clk 0:02:56.7]} 9... Nc5 {[%clk 0:02:50]}
10. Ng3 {[%clk 0:02:51]} 10... c6 {[%clk 0:02:46.9]} 11. Qd2 {[%clk 0:02:51]}
11... Nfd7 {[%clk 0:02:42.2]} 12. h4 {[%clk 0:02:47.1]} 12... cxd5 {[%clk
0:02:35.7]} 13. cxd5 {[%clk 0:02:46.6]} 13... a4 {[%clk 0:02:22.5]} 14. h5
{[%clk 0:02:45.3]} 14... a3 {[%clk 0:02:22]} 15. b4 {[%clk 0:02:37]} 15... Na4
{[%clk 0:02:19.2]} 16. Nb5 {[%clk 0:02:29]} 16... Ndb6 {[%clk 0:02:08.8]} 17.
Bh6 {[%clk 0:02:25.9]} 17... Bf6 {[%clk 0:02:00.4]} 18. g5 {[%clk 0:02:15.7]}
18... Bg7 {[%clk 0:01:55.7]} 19. Bxg7 {[%clk 0:02:11.1]} 19... Kxg7 {[%clk
0:01:55.5]} 20. f4 {[%clk 0:02:00.7]} 20... exf4 {[%clk 0:01:26.6]} 21. Qxf4
{[%clk 0:02:01.6]} 21... Qe7 {[%clk 0:01:24.4]} 22. Nxd6 {[%clk 0:01:47.7]}
22... Nxd5 {[%clk 0:01:14.3]} 23. Qh4 {[%clk 0:01:19.2]} 23... Qxd6 {[%clk
0:01:07.5]} 24. hxg6 {[%clk 0:01:18.4]} 24... Qxb4+ {[%clk 0:00:53.5]} 25. Kf2
{[%clk 0:00:36.6]} 25... fxg6+ {[%clk 0:00:52.4]} 26. Kg1 {[%clk 0:00:36.4]}
26... Qd4+ {[%clk 0:00:42.6]} 27. Kh2 {[%clk 0:00:36.7]} 27... Rf2+ {[%clk
0:00:24.6]} 28. Bg2 {[%clk 0:00:35.4]} 28... Ne3 {[%clk 0:00:17.1]} 29. Qh6+
{[%clk 0:00:17]} 29... Kg8 {[%clk 0:00:16.4]} 30. Rhf1 {[%clk 0:00:15.9]} 30...
Ng4+ {[%clk 0:00:15.6]} 31. Kh1 {[%clk 0:00:13.2]} 31... Nxh6 {[%clk 0:00:15.1]}
0-1

[Event "*** SCC Grand Prix: Titled Tuesday Blitz"]
[Site "Chess.com"]
[Date "2020.06.02"]
[Round "5"]
[White "Jungle_Jaguar"]
[Black "1f3_2g41-0"]
[Result "1-0"]
[WhiteElo "2596"]
[BlackElo "2248"]
[TimeControl "180+1"]
[EndTime "10:58:12 PDT"]
[Termination "Jungle_Jaguar won by resignation"]

1. e4 {[%clk 0:03:00.9]} 1... c5 {[%clk 0:02:57.8]} 2. Nf3 {[%clk 0:03:00.7]}
2... d6 {[%clk 0:02:57.3]} 3. d4 {[%clk 0:03:00.7]} 3... cxd4 {[%clk 0:02:58.2]}
4. Nxd4 {[%clk 0:03:01.5]} 4... Nf6 {[%clk 0:02:57.7]} 5. Nc3 {[%clk 0:03:01.8]}
5... a6 {[%clk 0:02:57.3]} 6. Be3 {[%clk 0:03:02]} 6... e5 {[%clk 0:02:55.7]} 7.
Nf3 {[%clk 0:03:02.3]} 7... Be7 {[%clk 0:02:55.1]} 8. Bc4 {[%clk 0:03:00.4]}
8... O-O {[%clk 0:02:50.6]} 9. O-O {[%clk 0:03:00.4]} 9... Be6 {[%clk
0:02:48.5]} 10. Bb3 {[%clk 0:02:53.1]} 10... Nc6 {[%clk 0:02:41.5]} 11. Qe2
{[%clk 0:02:47.3]} 11... b5 {[%clk 0:02:35.4]} 12. Rad1 {[%clk 0:02:46.3]} 12...
Rc8 {[%clk 0:02:21.6]} 13. Nd5 {[%clk 0:02:28.2]} 13... Bxd5 {[%clk 0:02:03.8]}
14. exd5 {[%clk 0:02:28.2]} 14... Na5 {[%clk 0:01:57.7]} 15. c3 {[%clk
0:02:12.6]} 15... Nc4 {[%clk 0:01:47.1]} 16. Bc1 {[%clk 0:01:58]} 16... Qd7
{[%clk 0:01:20.9]} 17. Bc2 {[%clk 0:01:56.2]} 17... Rfe8 {[%clk 0:00:58.5]} 18.
Nh4 {[%clk 0:01:41.7]} 18... e4 {[%clk 0:00:35.6]} 19. f3 {[%clk 0:01:12.3]}
19... Qa7+ {[%clk 0:00:12.9]} 20. Kh1 {[%clk 0:01:10.9]} 20... e3 {[%clk
0:00:13.2]} 21. Nf5 {[%clk 0:01:10.7]} 21... Bd8 {[%clk 0:00:13.1]} 22. b3
{[%clk 0:01:07.7]} 22... Nd2 {[%clk 0:00:09.2]} 23. Bxd2 {[%clk 0:01:06]} 23...
exd2 {[%clk 0:00:09.2]} 24. Qxd2 {[%clk 0:01:06.9]} 24... Qd7 {[%clk 0:00:08.2]}
25. Rfe1 {[%clk 0:00:30.2]} 25... g6 {[%clk 0:00:08.5]} 26. Rxe8+ {[%clk
0:00:21.7]} 26... Nxe8 {[%clk 0:00:09.4]} 27. Nh6+ {[%clk 0:00:22.1]} 27... Kg7
{[%clk 0:00:09.9]} 28. Ng4 {[%clk 0:00:22.6]} 28... Bb6 {[%clk 0:00:08.8]} 29.
Bd3 {[%clk 0:00:21.9]} 29... Nc7 {[%clk 0:00:08.3]} 30. c4 {[%clk 0:00:21.9]}
30... bxc4 {[%clk 0:00:08.4]} 31. bxc4 {[%clk 0:00:22.4]} 31... a5 {[%clk
0:00:08.8]} 32. Qb2+ {[%clk 0:00:22.8]} 32... Kg8 {[%clk 0:00:07.6]} 33. Nf6+
{[%clk 0:00:19.9]} 1-0

[Event "*** SCC Grand Prix: Titled Tuesday Blitz"]
[Site "Chess.com"]
[Date "2020.06.02"]
[Round "5"]
[White "Training_Day"]
[Black "gixfantastix"]
[Result "1-0"]
[WhiteElo "2328"]
[BlackElo "2076"]
[TimeControl "180+1"]
[EndTime "10:58:12 PDT"]
[Termination "Training_Day won on time"]

1. e4 {[%clk 0:03:00.9]} 1... c6 {[%clk 0:02:59]} 2. Nf3 {[%clk 0:02:59.6]} 2...
d5 {[%clk 0:02:59.9]} 3. Nc3 {[%clk 0:02:59.9]} 3... d4 {[%clk 0:02:59.8]} 4.
Ne2 {[%clk 0:02:59.2]} 4... c5 {[%clk 0:02:54.2]} 5. c3 {[%clk 0:02:58.3]} 5...
Nc6 {[%clk 0:02:53.8]} 6. cxd4 {[%clk 0:02:57.2]} 6... cxd4 {[%clk 0:02:51]} 7.
Qa4 {[%clk 0:02:55.4]} 7... d3 {[%clk 0:02:28.2]} 8. Nf4 {[%clk 0:02:51]} 8...
Nf6 {[%clk 0:01:49.9]} 9. Bxd3 {[%clk 0:02:27]} 9... e5 {[%clk 0:01:30.6]} 10.
Nxe5 {[%clk 0:02:23.6]} 10... Bd6 {[%clk 0:01:21.1]} 11. Nxc6 {[%clk 0:02:20.2]}
11... bxc6 {[%clk 0:01:22]} 12. Qxc6+ {[%clk 0:02:09.9]} 12... Ke7 {[%clk
0:01:15.8]} 13. Nd5+ {[%clk 0:01:57.7]} 13... Nxd5 {[%clk 0:01:15.4]} 14. Qxd5
{[%clk 0:01:50.1]} 14... Be6 {[%clk 0:01:07.5]} 15. Qg5+ {[%clk 0:01:48.8]}
15... f6 {[%clk 0:00:20.7]} 16. Qxg7+ {[%clk 0:01:48.3]} 16... Bf7 {[%clk
0:00:21.1]} 17. Bc4 {[%clk 0:01:47.6]} 17... Rf8 {[%clk 0:00:20.4]} 18. d3
{[%clk 0:01:14.3]} 18... Bb4+ {[%clk 0:00:19.6]} 19. Ke2 {[%clk 0:01:14.3]}
19... Qd4 {[%clk 0:00:18.8]} 20. Rb1 {[%clk 0:01:05.1]} 20... Rac8 {[%clk
0:00:03.4]} 21. Be3 {[%clk 0:01:04.7]} 21... Rxc4 {[%clk 0:00:03.2]} 22. Bxd4
{[%clk 0:01:02.9]} 22... Rxd4 {[%clk 0:00:04.1]} 23. Rhc1 {[%clk 0:00:57.1]}
23... Bd6 {[%clk 0:00:02.8]} 24. Rc6 {[%clk 0:00:23.4]} 24... Rg8 {[%clk
0:00:03]} 25. Qxh7 {[%clk 0:00:20.6]} 25... Rxg2 {[%clk 0:00:01.4]} 26. Rbc1
{[%clk 0:00:19.1]} 1-0

[Event "*** SCC Grand Prix: Titled Tuesday Blitz"]
[Site "Chess.com"]
[Date "2020.06.02"]
[Round "5"]
[White "Morshynska"]
[Black "zurzan"]
[Result "1-0"]
[WhiteElo "2159"]
[BlackElo "1914"]
[TimeControl "180+1"]
[EndTime "10:58:12 PDT"]
[Termination "Morshynska won by checkmate"]

1. e4 {[%clk 0:03:00.9]} 1... Nf6 {[%clk 0:02:59.1]} 2. e5 {[%clk 0:03:00]} 2...
Nd5 {[%clk 0:02:59.2]} 3. Nc3 {[%clk 0:02:58.7]} 3... Nb6 {[%clk 0:02:55.9]} 4.
d4 {[%clk 0:02:56.9]} 4... d6 {[%clk 0:02:55.9]} 5. Nf3 {[%clk 0:02:56]} 5... g6
{[%clk 0:02:55.5]} 6. h3 {[%clk 0:02:51]} 6... Bg7 {[%clk 0:02:55.4]} 7. Bd3
{[%clk 0:02:50.3]} 7... Nc6 {[%clk 0:02:53.6]} 8. Qe2 {[%clk 0:02:48.2]} 8...
O-O {[%clk 0:02:52.8]} 9. Bf4 {[%clk 0:02:34]} 9... dxe5 {[%clk 0:02:45.4]} 10.
dxe5 {[%clk 0:02:34.9]} 10... Nb4 {[%clk 0:02:35.9]} 11. Be4 {[%clk 0:02:28.7]}
11... c6 {[%clk 0:02:14.1]} 12. a3 {[%clk 0:02:10.3]} 12... N4d5 {[%clk
0:02:13.5]} 13. Bg3 {[%clk 0:01:38.4]} 13... Nxc3 {[%clk 0:02:10.6]} 14. bxc3
{[%clk 0:01:39.3]} 14... Nd5 {[%clk 0:02:09.8]} 15. Qd3 {[%clk 0:01:28.7]} 15...
Qa5 {[%clk 0:02:01.5]} 16. O-O {[%clk 0:00:54]} 16... Qxc3 {[%clk 0:01:54.1]}
17. Bxd5 {[%clk 0:00:53.2]} 17... Qxd3 {[%clk 0:01:53.8]} 18. Bxf7+ {[%clk
0:00:52.6]} 18... Rxf7 {[%clk 0:01:53.5]} 19. cxd3 {[%clk 0:00:53.5]} 19... Bxh3
{[%clk 0:01:50.8]} 20. Ng5 {[%clk 0:00:52.3]} 20... Bxg2 {[%clk 0:01:44]} 21.
Kxg2 {[%clk 0:00:50.5]} 21... Rf5 {[%clk 0:01:43.6]} 22. f4 {[%clk 0:00:45]}
22... Rd8 {[%clk 0:01:18.6]} 23. Rfd1 {[%clk 0:00:41.7]} 23... Bxe5 {[%clk
0:01:13.6]} 24. fxe5 {[%clk 0:00:21]} 24... Rxg5 {[%clk 0:01:13.3]} 25. d4
{[%clk 0:00:20.2]} 25... h5 {[%clk 0:01:12.2]} 26. Kf3 {[%clk 0:00:18.8]} 26...
Rf5+ {[%clk 0:01:11.5]} 27. Ke4 {[%clk 0:00:18.4]} 27... e6 {[%clk 0:01:09.8]}
28. Bh4 {[%clk 0:00:17.8]} 28... Rd7 {[%clk 0:01:09.6]} 29. Bf6 {[%clk
0:00:17.6]} 29... b5 {[%clk 0:01:05.5]} 30. Rg1 {[%clk 0:00:17.2]} 30... Kf7
{[%clk 0:01:04]} 31. a4 {[%clk 0:00:17.4]} 31... a6 {[%clk 0:01:03.7]} 32. axb5
{[%clk 0:00:17]} 32... axb5 {[%clk 0:01:03.7]} 33. Ra8 {[%clk 0:00:17.3]} 33...
Rf2 {[%clk 0:00:56.8]} 34. Rga1 {[%clk 0:00:16.6]} 34... Re2+ {[%clk 0:00:56]}
35. Kf3 {[%clk 0:00:16.4]} 35... Rd2 {[%clk 0:00:53.4]} 36. Rh8 {[%clk
0:00:13.6]} 36... R2xd4 {[%clk 0:00:50.5]} 37. Rh7+ {[%clk 0:00:09.1]} 37... Kg8
{[%clk 0:00:47.7]} 38. Rh8+ {[%clk 0:00:08.8]} 38... Kf7 {[%clk 0:00:46.9]} 39.
Rh7+ {[%clk 0:00:08.9]} 39... Kg8 {[%clk 0:00:47.1]} 40. Ra8+ {[%clk 0:00:08.2]}
40... Kxh7 {[%clk 0:00:45.6]} 41. Rh8# {[%clk 0:00:07.7]} 1-0

[Event "*** SCC Grand Prix: Titled Tuesday Blitz"]
[Site "Chess.com"]
[Date "2020.06.02"]
[Round "5"]
[White "1stSecond"]
[Black "CrushingKings"]
[Result "1-0"]
[WhiteElo "2715"]
[BlackElo "2507"]
[TimeControl "180+1"]
[EndTime "10:58:13 PDT"]
[Termination "1stSecond won by resignation"]

1. Nf3 {[%clk 0:03:00.6]} 1... g6 {[%clk 0:02:59.8]} 2. c4 {[%clk 0:03:00.4]}
2... Bg7 {[%clk 0:03:00.3]} 3. Nc3 {[%clk 0:03:01]} 3... d6 {[%clk 0:03:00]} 4.
b3 {[%clk 0:02:56.3]} 4... Nf6 {[%clk 0:02:54.3]} 5. Bb2 {[%clk 0:02:56.5]} 5...
c5 {[%clk 0:02:54]} 6. d4 {[%clk 0:02:55.7]} 6... Nbd7 {[%clk 0:02:53.7]} 7. e4
{[%clk 0:02:54.4]} 7... O-O {[%clk 0:02:52.9]} 8. Be2 {[%clk 0:02:54.3]} 8...
Ne8 {[%clk 0:02:53]} 9. O-O {[%clk 0:02:49.1]} 9... b6 {[%clk 0:02:52.3]} 10.
Re1 {[%clk 0:02:47]} 10... a6 {[%clk 0:02:52.6]} 11. a4 {[%clk 0:02:45.6]} 11...
Rb8 {[%clk 0:02:52.1]} 12. Qd2 {[%clk 0:02:41.7]} 12... Nc7 {[%clk 0:02:51.9]}
13. d5 {[%clk 0:02:41.7]} 13... Nf6 {[%clk 0:02:50.5]} 14. e5 {[%clk 0:02:37.9]}
14... Nfe8 {[%clk 0:02:50.7]} 15. Ne4 {[%clk 0:02:23.3]} 15... Bf5 {[%clk
0:02:30.3]} 16. exd6 {[%clk 0:01:52.5]} 16... exd6 {[%clk 0:02:26.9]} 17. Bxg7
{[%clk 0:01:52]} 17... Nxg7 {[%clk 0:02:09.6]} 18. Qh6 {[%clk 0:01:46]} 18... f6
{[%clk 0:01:54.3]} 19. Nfg5 {[%clk 0:01:44.4]} 19... fxg5 {[%clk 0:01:35.4]} 20.
Nxg5 {[%clk 0:01:44.2]} 20... Rf7 {[%clk 0:01:36]} 21. Qxh7+ {[%clk 0:01:27.6]}
21... Kf8 {[%clk 0:01:36.1]} 22. Bg4 {[%clk 0:01:22.9]} 22... Be6 {[%clk
0:00:19.8]} 23. Qh8+ {[%clk 0:00:48.6]} 23... Ke7 {[%clk 0:00:19.3]} 24. Qxd8+
{[%clk 0:00:49.5]} 24... Kxd8 {[%clk 0:00:18.5]} 25. dxe6 {[%clk 0:00:39.1]}
25... Rf6 {[%clk 0:00:15.5]} 26. e7+ {[%clk 0:00:32.6]} 26... Ke8 {[%clk
0:00:16]} 27. Ne4 {[%clk 0:00:31.7]} 27... Kxe7 {[%clk 0:00:13.8]} 28. Nxf6+
{[%clk 0:00:26.5]} 28... Kxf6 {[%clk 0:00:14.7]} 29. Rad1 {[%clk 0:00:26.7]}
29... Rd8 {[%clk 0:00:14.9]} 30. Rd3 {[%clk 0:00:16.6]} 30... Nge6 {[%clk
0:00:12.5]} 31. Rf3+ {[%clk 0:00:15.4]} 31... Ke7 {[%clk 0:00:10.9]} 32. Bxe6
{[%clk 0:00:15.7]} 32... Nxe6 {[%clk 0:00:11.8]} 33. Rfe3 {[%clk 0:00:16.5]} 1-0

[Event "*** SCC Grand Prix: Titled Tuesday Blitz"]
[Site "Chess.com"]
[Date "2020.06.02"]
[Round "5"]
[White "AttilaTurzo"]
[Black "Playgood28"]
[Result "1-0"]
[WhiteElo "2479"]
[BlackElo "2303"]
[TimeControl "180+1"]
[EndTime "10:58:13 PDT"]
[Termination "AttilaTurzo won by resignation"]

1. e4 {[%clk 0:03:00.9]} 1... e5 {[%clk 0:02:56.5]} 2. Nf3 {[%clk 0:03:00.8]}
2... d6 {[%clk 0:02:56.3]} 3. d4 {[%clk 0:03:00.1]} 3... exd4 {[%clk 0:02:57.2]}
4. Nxd4 {[%clk 0:03:01]} 4... Nf6 {[%clk 0:02:57]} 5. Nc3 {[%clk 0:03:01.7]}
5... Be7 {[%clk 0:02:56.9]} 6. Bf4 {[%clk 0:03:01.7]} 6... O-O {[%clk
0:02:56.1]} 7. Qd2 {[%clk 0:03:01.9]} 7... a6 {[%clk 0:02:56]} 8. O-O-O {[%clk
0:02:59.3]} 8... b5 {[%clk 0:02:55.6]} 9. f3 {[%clk 0:02:58.2]} 9... c5 {[%clk
0:02:55]} 10. Nf5 {[%clk 0:02:51.6]} 10... Bxf5 {[%clk 0:02:54.3]} 11. exf5
{[%clk 0:02:52.5]} 11... Nc6 {[%clk 0:02:54]} 12. g4 {[%clk 0:02:46.8]} 12...
Nd4 {[%clk 0:02:51.1]} 13. Bg2 {[%clk 0:02:42.6]} 13... b4 {[%clk 0:02:48.4]}
14. Ne2 {[%clk 0:02:37.1]} 14... Nd5 {[%clk 0:02:33.1]} 15. Bg3 {[%clk
0:02:08.8]} 15... Bg5 {[%clk 0:01:54.4]} 16. f4 {[%clk 0:02:03.6]} 16... Nxe2+
{[%clk 0:01:48]} 17. Qxe2 {[%clk 0:02:04.5]} 17... Nxf4 {[%clk 0:01:46.9]} 18.
Bxf4 {[%clk 0:02:01.6]} 18... Bxf4+ {[%clk 0:01:46.7]} 19. Kb1 {[%clk 0:02:02]}
19... Rb8 {[%clk 0:01:44.1]} 20. Qxa6 {[%clk 0:02:00.1]} 20... Qf6 {[%clk
0:01:34.3]} 21. Qd3 {[%clk 0:01:40.9]} 21... Be5 {[%clk 0:01:30.4]} 22. Qb3
{[%clk 0:01:34.6]} 22... c4 {[%clk 0:01:14.3]} 23. Qxc4 {[%clk 0:01:34.5]} 23...
Bxb2 {[%clk 0:01:13.7]} 24. Rhe1 {[%clk 0:01:22.9]} 24... Rfc8 {[%clk 0:01:07]}
25. Qb3 {[%clk 0:01:19.9]} 25... Be5 {[%clk 0:00:50.3]} 26. Re3 {[%clk
0:01:13.1]} 26... h6 {[%clk 0:00:46.1]} 27. Bd5 {[%clk 0:01:07.3]} 27... Rc3
{[%clk 0:00:45.4]} 28. Rxc3 {[%clk 0:01:05.9]} 28... Bxc3 {[%clk 0:00:44]} 29.
a4 {[%clk 0:01:00.1]} 29... Qe5 {[%clk 0:00:31.6]} 30. a5 {[%clk 0:00:55.6]}
30... Rb5 {[%clk 0:00:24.2]} 31. Bxf7+ {[%clk 0:00:44]} 31... Kf8 {[%clk
0:00:20.1]} 32. Bg6 {[%clk 0:00:42.2]} 32... Qf6 {[%clk 0:00:19.6]} 33. Qc4
{[%clk 0:00:38.8]} 33... Rb8 {[%clk 0:00:12]} 34. a6 {[%clk 0:00:34.9]} 34...
Ba1 {[%clk 0:00:11.5]} 35. Qa2 {[%clk 0:00:32.4]} 35... d5 {[%clk 0:00:11.3]}
36. Qxa1 {[%clk 0:00:31.7]} 1-0